bitfinex-derivatives/quotes_SOLF0:USTF0_20260218
["timestamp","ask_amount","ask_price","bid_price","bid_amount"]
[1771434411369,7.81759933,82.805,82.73,8.0043948]
[1771434411574,7.80483467,82.803,82.73,8.0043948]
[1771434411771,7.80483467,82.801,82.73,8.0043948]
[1771434412175,7.80483467,82.801,82.759,10.8797]
[1771434412676,7.80483334,82.799,82.759,10.8797]
[1771434413266,7.80483334,82.799,82.73,8.0043948]
[1771434413267,7.80483334,82.799,82.766,10.8788]
[1771434413469,76.12,82.798,82.766,10.8788]
[1771434413873,7.79942966,82.814,82.75,8.0043948]
[1771434414076,76.12,82.813,82.75,8.0043948]
[1771434414376,7.79942839,82.812,82.768,10.8785]
[1771434414571,83.91942839,82.811,82.768,10.8785]
[1771434414770,7.79942839,82.811,82.75,8.0043948]
[1771434414972,7.79942839,82.829,82.736,169.2889]
[1771434415173,76.12,82.835,82.78,8.0043948]
[1771434415371,76.12,82.838,82.78,8.0043948]
[1771434415684,76.12,82.841,82.78,8.0043948]
[1771434415972,7.79908084,82.865,82.8,8.0043948]
[1771434416270,7.79908084,82.865,82.78,8.0043948]
[1771434416470,7.7990796,82.852,82.793,10.8753]
[1771434416668,7.7990796,82.852,82.78,8.0043948]
[1771434416870,76.1,82.851,82.78,8.0043948]
[1771434417168,7.7990796,82.852,82.78,8.0043948]
[1771434417369,241.62,82.88,82.78,8.0043948]
[1771434417370,76.1,82.851,82.78,8.0043948]
[1771434417768,7.77364921,82.85,82.78,8.0043948]
[1771434418477,76.1,82.851,82.8,8.0043948]
[1771434418669,76.1,82.85,82.8,8.0043948]
[1771434418867,83.87364811,82.85,82.807,10.8734]
[1771434420280,76.08,82.849,82.8,8.0043948]
[1771434420474,76.08,82.848,82.8,8.0043948]
[1771434420674,76.08,82.848,82.765,21.7581]
[1771434420675,7.72699279,82.847,82.806,10.8736]
[1771434420874,76.08,82.846,82.78,8.0043948]
[1771434421073,76.08,82.846,82.813,10.8726]
[1771434421074,56.7116,82.846,82.813,10.8726]
[1771434421271,56.7116,82.846,82.8,8.0043948]
[1771434421272,17.7368,82.846,82.8,8.0043948]
[1771434421466,7.72699279,82.862,82.8,8.0043948]
[1771434421467,76.08,82.853,82.8,8.0043948]
[1771434421670,7.74159813,82.892,82.82,8.0043948]
[1771434422069,9.02851338,82.89,82.82,8.0043948]
[1771434422370,9.02851246,82.909,82.82,8.0043948]
[1771434422580,9.02851246,82.907,82.82,8.0043948]
[1771434422875,9.02851246,82.903,82.847,10.8682]
[1771434423077,9.02851246,82.903,82.82,8.0043948]
[1771434423381,9.02851246,82.901,82.82,8.0043948]
[1771434423781,9.06873926,82.894,82.82,8.0043948]
[1771434424375,9.0687382,82.892,82.843,10.8687]
[1771434424774,9.0687382,82.89,82.82,8.0043948]
[1771434425378,9.06711419,82.882,82.832,10.8702]
[1771434425675,9.06711419,82.882,82.801,252.05519762]
[1771434425875,9.06711419,82.864,82.813,10.8726]
[1771434426076,76.04,82.863,82.801,252.05519762]
[1771434426672,9.06711419,82.864,82.801,252.05519762]
[1771434426873,9.06711419,82.864,82.826,10.8709]
[1771434427285,85.10711419,82.864,82.826,10.8709]
[1771434427777,76.04,82.863,82.826,10.8709]
[1771434428279,9.07327075,82.862,82.801,252.05519762]
[1771434428482,9.07326973,82.86,82.801,252.05519762]
[1771434428684,76.04,82.877,82.83,10.8704]
[1771434428880,9.07326973,82.88,82.83,10.8704]
[1771434428881,76.04,82.876,82.83,10.8704]
[1771434429083,85.11326973,82.876,82.83,10.8704]
[1771434429296,85.11326973,82.876,82.818,10.872]
[1771434429297,9.07326973,82.875,82.818,10.872]
[1771434430179,10.8631,82.887,82.826,10.871]
[1771434430374,9.10449774,82.885,82.826,10.871]
[1771434431178,85.14449663,82.884,82.833,10.87]
[1771434431377,9.10449663,82.901,82.81,7.99119091]
[1771434431580,9.13209159,82.899,82.81,7.99119091]
[1771434431781,9.13209159,82.886,82.837,10.8695]
[1771434432583,76.04,82.885,82.83,7.99119091]
[1771434432777,76.04,82.888,82.83,7.99119091]
[1771434432979,76.04,82.888,82.831,12.14]
[1771434433284,10.8612,82.901,82.85,10.8678]
[1771434433580,9.09548249,82.917,82.85,7.99119091]
[1771434433782,10.8611,82.902,82.85,7.99119091]
[1771434433982,10.8611,82.902,82.811,36.21]
[1771434433983,9.09548249,82.909,82.83,7.99119091]
[1771434434583,7.99119091,82.92,82.81,7.99119091]
[1771434434584,9.09548145,82.893,82.81,7.99119091]
[1771434434980,9.09548145,82.893,82.811,12.14]
[1771434435182,9.09548145,82.893,82.81,7.99119091]
[1771434435485,10.8647,82.875,82.826,10.8709]
[1771434435686,76.02,82.908,82.81,7.99119091]
[1771434435687,9.09620954,82.907,82.811,36.21]
[1771434435887,9.09620954,82.907,82.84,7.99119091]
[1771434436184,9.09620954,82.905,82.84,7.99119091]
[1771434436584,9.09620954,82.905,82.812,21.7455]
[1771434436776,9.09620855,82.903,82.81,7.99119091]
[1771434436972,9.09620855,82.901,82.81,7.99119091]
[1771434437179,9.09620855,82.889,82.81,7.99119091]
[1771434437373,9.09620855,82.863,82.819,10.8719]
[1771434437789,9.09648738,82.897,82.81,7.99119091]
[1771434438082,9.09648738,82.895,82.81,7.99119091]
[1771434438489,10.8647,82.875,82.826,10.871]
[1771434439080,10.8655,82.868,82.826,10.871]
[1771434440685,10.8655,82.868,82.81,7.99119091]
[1771434440889,10.8665,82.861,82.819,10.8719]
[1771434441189,10.8665,82.861,82.804,83.94]
[1771434441190,9.10334722,82.861,82.792,83.82]
[1771434441489,9.10334722,82.861,82.817,10.8722]
[1771434442490,19.96984722,82.861,82.817,10.8722]
[1771434443390,9.10227828,82.86,82.817,10.8722]
[1771434444178,9.10227828,82.86,82.807,10.8734]
[1771434444390,9.10227828,82.86,82.79,7.99119091]
[1771434445291,9.10462998,82.849,82.801,262.92939762]
[1771434445488,9.10462998,82.849,82.801,252.05519762]
[1771434446490,10.8682,82.848,82.807,10.8734]
[1771434447590,10.8692,82.841,82.801,252.05519762]
[1771434447788,9.10462998,82.849,82.801,252.05519762]
[1771434448294,9.09151702,82.914,82.83,7.99119091]
[1771434448789,9.09151702,82.914,82.876,10.8644]
[1771434448993,9.09151702,82.914,82.864,84.88]
[1771434449194,9.09151702,82.914,82.85,7.99119091]
[1771434449599,9.09151702,82.914,82.851,84.86]
[1771434450087,9.09151702,82.914,82.875,10.8645]
[1771434450490,9.09151702,82.914,82.851,84.86]
[1771434450891,9.09151702,82.914,82.852,84.8]
[1771434451090,9.09151702,82.914,82.853,84.8]
[1771434451498,9.09151702,82.914,82.85,7.99119091]
[1771434451698,9.09151702,82.914,82.885,10.8632]
[1771434452092,9.0825056,82.93,82.876,84.78]
[1771434452292,9.0825056,82.93,82.87,7.99119091]
[1771434452493,9.08250481,82.951,82.909,10.86]
[1771434453292,9.08250481,82.951,82.9,10.8612]
[1771434453496,9.08250481,82.951,82.87,7.99119091]
[1771434453798,9.08250481,82.951,82.871,84.82]
[1771434454699,9.0870079,82.928,82.873,10.8648]
[1771434455590,9.07012567,82.926,82.873,10.8648]
[1771434456192,9.07012567,82.924,82.863,10.8661]
[1771434456399,9.07012567,82.924,82.85,7.99119091]
[1771434456587,9.07012567,82.924,82.85,20.13119091]
[1771434456987,9.07012567,82.924,82.861,10.8664]
[1771434457792,9.06803632,82.913,82.861,10.8664]
[1771434457994,9.06803632,82.913,82.85,7.99119091]
[1771434458593,9.06803632,82.913,82.831,36.21]
[1771434458594,9.06803562,82.934,82.87,7.99119091]
[1771434459498,9.06803562,82.934,82.894,10.862]
[1771434459695,9.06803562,82.934,82.87,7.99119091]
[1771434459897,9.07260516,82.924,82.85,7.99119091]
[1771434460591,9.07260447,82.901,82.84,7.99119091]
[1771434461299,9.07260447,82.901,82.863,10.8661]
[1771434461497,9.07260447,82.901,82.84,7.99119091]
[1771434462001,7.99119091,82.93,82.84,7.99119091]
[1771434462002,9.05634555,82.898,82.854,10.8673]
[1771434462200,9.05634555,82.898,82.84,7.99119091]
[1771434464000,75.98,82.939,82.84,7.99119091]
[1771434464199,9.06106239,82.938,82.84,7.99119091]
[1771434464700,9.06106176,82.917,82.84,7.99119091]
[1771434465404,9.06106176,82.906,82.855,10.8671]
[1771434466403,9.06106176,82.906,82.863,10.8661]
[1771434469500,9.06925446,82.9,82.853,10.8674]
[1771434470408,11.06183214,82.966,82.825,26.98448889]
[1771434470409,9.06925446,82.882,82.825,5.07093269]
[1771434470606,36.21,82.948,82.825,5.07093269]
[1771434470607,9.06925385,82.914,82.84,7.99119091]
[1771434471097,10.8598,82.912,82.867,10.8655]
[1771434471299,9.06925385,82.911,82.867,10.8655]
[1771434471501,9.06925385,82.911,82.84,7.99119091]
[1771434471701,9.06925385,82.911,82.863,10.866]
[1771434472806,9.06925385,82.911,82.855,10.8671]
[1771434473813,9.06130249,82.902,82.852,21.9135562]
[1771434474000,9.06130249,82.902,82.854,21.9135562]
[1771434474200,9.06130249,82.902,82.855,21.9135562]
[1771434474400,9.06130249,82.902,82.853,21.9135562]
[1771434474703,9.06130249,82.902,82.86,10.8665]
[1771434475712,9.06214638,82.896,82.851,32.7811562]
[1771434476913,75.98,82.927,82.859,10.8666]
[1771434476914,9.06214583,82.911,82.859,10.8666]
[1771434477210,9.06214583,82.911,82.851,21.9135562]
[1771434477211,10.8623,82.893,82.851,21.9135562]
[1771434477415,9.06214583,82.911,82.855,21.9135562]
[1771434477615,9.06214583,82.911,82.856,21.9135562]
[1771434477815,9.06214583,82.911,82.855,21.9135562]
[1771434478113,9.06214583,82.911,82.856,21.9135562]
[1771434478315,9.06102177,82.907,82.863,10.8661]
[1771434478711,7.99119091,82.95,82.862,21.9135562]
[1771434478712,9.06102124,82.924,82.862,21.9135562]
[1771434479014,9.06102124,82.92,82.859,21.9135562]
[1771434479216,9.06102124,82.92,82.858,21.9135562]
[1771434479411,9.06102124,82.92,82.859,21.9135562]
[1771434479608,9.06102124,82.92,82.862,21.9135562]
[1771434479804,10.86,82.91,82.866,10.8657]
[1771434480010,9.06102124,82.92,82.858,21.9135562]
[1771434480208,9.06102124,82.92,82.85,7.99119091]
[1771434480209,10.8605,82.907,82.866,10.8657]
[1771434480515,9.06102124,82.92,82.858,21.9135562]
[1771434480912,9.06473734,82.909,82.853,21.9135562]
[1771434481212,9.06473734,82.909,82.85,7.99119091]
[1771434482810,36.21,82.962,82.845,21.9135562]
[1771434482811,8.93824318,82.94,82.845,21.9135562]
[1771434483119,8.93824318,82.94,82.87,7.99119091]
[1771434483312,8.93824318,82.94,82.897,10.8616]
[1771434483512,8.93824318,82.94,82.87,7.99119091]
[1771434483811,8.90787587,82.932,82.87,7.99119091]
[1771434484812,10.8583,82.924,82.883,10.8635]
[1771434486217,10.8591,82.917,82.875,10.8645]
[1771434486418,8.90787587,82.932,82.876,39.7985]
[1771434486721,10.8588,82.919,82.877,10.8643]
[1771434486920,8.91721357,82.918,82.876,39.7985]
[1771434487420,10.8598,82.912,82.876,39.7985]
[1771434487620,8.91721357,82.918,82.876,39.7985]
[1771434488216,8.83339864,82.915,82.876,39.7985]
[1771434489823,10.8598,82.912,82.876,39.7985]
[1771434491531,10.8608,82.905,82.876,39.7985]
[1771434491731,8.84303887,82.911,82.864,21.9135562]
[1771434492031,8.84303887,82.911,82.877,10.8643]
[1771434492330,10.8593,82.916,82.877,10.8643]
[1771434492529,8.84303887,82.925,82.868,21.9135562]
[1771434492729,7.97915091,82.95,82.868,21.9135562]
[1771434492730,8.84303879,82.912,82.868,21.9135562]
[1771434493238,10.8624,82.892,82.857,21.9135562]
[1771434493531,10.8624,82.892,82.856,21.9135562]
[1771434494128,19.7088927,82.892,82.856,21.9135562]
[1771434494437,8.8464927,82.891,82.851,21.9135562]
[1771434495330,8.8464927,82.891,82.846,10.8683]
[1771434495930,8.8464927,82.891,82.852,10.8675]
[1771434496135,10.8617,82.897,82.852,10.8675]
[1771434496932,10.8627,82.89,82.846,21.9135562]
[1771434497430,19.70319994,82.897,82.846,21.9135562]
[1771434497627,19.70319994,82.897,82.845,21.9135562]
[1771434497828,8.84139994,82.897,82.845,21.9135562]
[1771434498335,8.84139994,82.897,82.846,21.9135562]
[1771434498529,8.84968701,82.89,82.846,21.9135562]
[1771434499333,19.71248701,82.889,82.846,21.9135562]
[1771434499534,8.76117962,82.888,82.846,21.9135562]
[1771434499734,8.76117962,82.888,82.841,21.9135562]
[1771434500030,8.76117962,82.871,82.83,2.98191458]
[1771434500829,10.8662,82.863,82.83,2.98191458]
[1771434501026,8.76117968,82.862,82.825,5.07093269]
[1771434501434,10.8674,82.854,82.83,2.98191458]
[1771434501933,10.8674,82.854,82.825,5.07093269]
[1771434502237,10.8665,82.861,82.825,5.07093269]
[1771434503439,19.63438205,82.861,82.825,5.07093269]
[1771434503736,10.867,82.857,82.825,5.07093269]
[1771434504238,8.76788205,82.86,82.825,5.07093269]
[1771434504941,75.98,82.884,82.825,5.07093269]
[1771434504942,8.7678821,82.858,82.825,5.07093269]
[1771434507336,10.8682,82.848,82.825,5.07093269]
[1771434510540,19.58826646,82.848,82.825,5.07093269]
[1771434511140,8.72006646,82.847,82.825,5.07093269]
[1771434511341,10.8689,82.842,82.825,3.269e-05]
[1771434512843,8.72006646,82.847,82.825,3.269e-05]
[1771434516748,36.21,82.909,82.825,3.269e-05]
[1771434516749,8.53881418,82.875,82.825,3.269e-05]
[1771434517645,8.48656081,82.873,82.825,3.269e-05]
[1771434517844,8.48656081,82.852,82.825,3.269e-05]
[1771434518452,8.48656081,82.849,82.825,3.269e-05]
[1771434519754,10.8682,82.848,82.825,3.269e-05]
[1771434520750,10.8686,82.844,82.825,3.269e-05]
[1771434521757,8.46322626,82.841,82.825,3.269e-05]
[1771434523864,19.33232626,82.841,82.825,3.269e-05]
[1771434524156,8.52445906,82.84,82.825,3.269e-05]
[1771434525246,10.8693,82.839,82.825,3.269e-05]
[1771434525649,8.52445906,82.84,82.618,73.38774648]
[1771434525650,8.5177024,82.838,82.79,2.98394407]
[1771434525854,2.98394407,82.83,82.775,37.21245712]
[1771434526053,8.5177024,82.838,82.79,2.98394407]
[1771434526452,8.5177024,82.838,82.781,32.13846135]
[1771434526853,10.8709,82.827,82.781,32.13846135]
[1771434527660,10.8717,82.821,82.785,10.8763]
[1771434527858,2.98394407,82.81,82.775,5.07399577]
[1771434528662,10.8744,82.801,82.775,5.07399577]
[1771434528862,2.98394407,82.8,82.775,5.07399577]
[1771434529360,10.8759,82.789,82.775,9.577e-05]
[1771434529667,76.02,82.808,82.775,9.577e-05]
[1771434530160,10.8753,82.794,82.775,9.577e-05]
[1771434530552,8.00334961,82.83,82.775,9.577e-05]
[1771434530758,10.8726,82.814,82.775,32.11655107]
[1771434531764,10.8726,82.814,82.778,32.12916958]
[1771434532153,10.8717,82.821,82.778,32.12916958]
[1771434532360,8.00334961,82.85,82.78,32.12916958]
[1771434532560,76.04,82.849,82.78,32.12916958]
[1771434533764,10.8696,82.837,82.795,32.10192767]
[1771434534263,10.8684,82.847,82.804,32.10192767]
[1771434535865,10.8691,82.841,82.804,32.10192767]
[1771434537578,10.8699,82.835,82.804,32.10192767]
[1771434537765,76.04,82.85,82.79,32.17939747]
[1771434538066,8.00334961,82.87,82.79,32.17939747]
[1771434538470,21.7315,82.867,82.79,32.17939747]
[1771434538770,10.8699,82.835,82.791,10.8755]
[1771434538966,8.00334961,82.87,82.792,32.1800412]
[1771434539158,76.04,82.869,82.792,32.1800412]
[1771434539363,8.00334961,82.87,82.792,32.1800412]
[1771434539364,76.04,82.868,82.792,32.1800412]
[1771434539971,10.8718,82.821,82.792,32.1800412]
[1771434540171,21.7324,82.863,82.792,32.1800412]
[1771434540372,76.04,82.862,82.792,32.1800412]
[1771434541072,10.8716,82.822,82.792,32.1800412]
[1771434541871,76.04,82.834,82.772,39.7985]
[1771434541872,76.04,82.835,82.778,32.18064118]
[1771434542368,10.8721,82.818,82.778,32.18064118]
[1771434542769,76.04,82.835,82.778,32.18064118]
[1771434543473,21.7366,82.847,82.726,39.7985]
[1771434543474,10.8744,82.801,82.755,32.17380801]
[1771434543668,76.04,82.817,82.755,32.17380801]
[1771434543870,76.04,82.816,82.755,32.17380801]
[1771434544063,10.8748,82.797,82.755,32.17380801]
[1771434544668,76.04,82.813,82.755,32.17380801]
[1771434546480,76.04,82.812,82.755,32.17380801]
[1771434546972,10.877,82.781,82.755,32.17380801]
[1771434549781,10.877,82.781,82.731,32.16140677]
[1771434550174,76.06,82.794,82.75,32.16140677]
[1771434551072,10.8763,82.786,82.75,32.16140677]
[1771434551476,76.06,82.794,82.75,32.16140677]
[1771434551877,10.8762,82.787,82.75,35.14943517]
[1771434552768,2.9880284,82.8,82.75,35.14943517]
[1771434552769,10.877,82.781,82.75,32.16140677]
[1771434553778,10.8781,82.772,82.734,32.15833419]
[1771434554177,2.9880284,82.79,82.741,32.15833419]
[1771434554580,76.06,82.791,82.741,32.15833419]
[1771434554980,10.8772,82.779,82.741,32.15833419]
[1771434555883,2.9880284,82.78,82.729,32.11250904]
[1771434556086,2.9880284,82.76,82.725,5.07706256]
[1771434556779,10.8812,82.749,82.725,5.07706256]
[1771434557980,10.8828,82.737,82.725,6.256e-05]
[1771434558773,76.08,82.779,82.725,32.12157246]
[1771434558978,76.08,82.779,82.731,32.1215099]
[1771434559178,2.9880284,82.78,82.731,32.1215099]
[1771434559382,79.0680284,82.78,82.731,32.1215099]
[1771434561288,76.08,82.779,82.731,32.1215099]
[1771434561581,10.879,82.766,82.731,32.1215099]
[1771434561781,2.9880284,82.77,82.731,32.1215099]
[1771434562086,76.08,82.769,82.731,32.1215099]
[1771434562492,10.88,82.758,82.731,32.1215099]
[1771434563191,10.88,82.758,82.725,6.256e-05]
[1771434564078,10.8808,82.752,82.725,6.256e-05]
[1771434564675,76.08,82.769,82.725,6.256e-05]
[1771434564676,10.8798,82.76,82.725,6.256e-05]
[1771434565078,76.08,82.769,82.725,6.256e-05]
[1771434565274,10.8797,82.761,82.725,6.256e-05]
[1771434565479,76.08,82.769,82.725,6.256e-05]
[1771434565680,8.01125712,82.81,82.725,6.256e-05]
[1771434565681,76.1,82.793,82.725,6.256e-05]
[1771434566083,8.01125712,82.81,82.74,32.13491217]
[1771434566284,76.1,82.809,82.74,32.13491217]
[1771434566687,76.1,82.808,82.74,32.13491217]
[1771434567691,10.8759,82.79,82.746,10.8815]
[1771434567890,10.8759,82.79,82.747,32.14702569]
[1771434568296,10.8759,82.79,82.73,8.01125712]
[1771434568297,10.8759,82.79,82.749,32.14702569]
[1771434568488,76.1,82.808,82.749,32.14702569]
[1771434568989,8.01125712,82.83,82.76,32.14740962]
[1771434569191,76.1,82.815,82.76,32.14740962]
[1771434569987,10.8723,82.816,82.763,32.13227244]
[1771434570190,21.7385,82.84,82.763,32.13227244]
[1771434570386,76.1,82.839,82.763,32.13227244]
[1771434570994,8.01125712,82.86,82.763,32.13227244]
[1771434571196,76.1,82.839,82.763,32.13227244]
[1771434571391,8.01125712,82.86,82.763,32.13227244]
[1771434571584,76.1,82.859,82.763,32.13227244]
[1771434571790,76.1,82.859,82.75,8.01125712]
[1771434571791,10.8712,82.825,82.779,32.13804459]
[1771434572199,76.1,82.858,82.779,32.13804459]
[1771434572394,10.8713,82.824,82.781,32.13804459]
[1771434573000,76.08,82.857,82.781,32.13804459]
[1771434573193,8.01125712,82.84,82.757,32.13839717]
[1771434573493,76.08,82.839,82.761,32.13839717]
[1771434574299,8.01125712,82.84,82.761,32.13839717]
[1771434574499,76.08,82.839,82.761,32.13839717]
[1771434574695,8.01125712,82.82,82.761,32.13839717]
[1771434575401,10.876,82.788,82.745,32.14811386]
[1771434576201,21.7449,82.816,82.745,32.14811386]
[1771434576407,76.08,82.815,82.745,32.14811386]
[1771434576806,10.8777,82.775,82.728,32.15137758]
[1771434576999,10.8777,82.775,82.729,32.15137758]
[1771434577408,10.8787,82.768,82.729,32.15137758]
[1771434578011,10.8777,82.775,82.729,32.15137758]
[1771434578205,76.08,82.785,82.729,32.15137758]
[1771434578802,76.08,82.785,82.725,6.256e-05]
[1771434579004,21.7504,82.795,82.725,6.256e-05]
[1771434579005,8.01125712,82.78,82.725,6.256e-05]
[1771434579205,76.08,82.779,82.725,6.256e-05]
[1771434579410,10.8812,82.749,82.725,6.256e-05]
[1771434580105,10.882,82.742,82.725,6.256e-05]
[1771434580615,10.883,82.735,82.725,6.256e-05]
[1771434581006,10.8839,82.728,82.725,6.256e-05]
[1771434581213,10.8839,82.728,82.679,32.09913765]
[1771434581804,10.8851,82.719,82.679,32.09913765]
[1771434582111,76.08,82.734,82.679,32.09913765]
[1771434582312,10.8863,82.71,82.679,32.09913765]
[1771434582712,10.8863,82.71,82.675,5.08013305]
[1771434583021,76.1,82.718,82.675,5.08013305]
[1771434583210,76.1,82.717,82.675,3.305e-05]
[1771434583416,21.7604,82.756,82.675,3.305e-05]
[1771434583417,76.1,82.716,82.675,3.305e-05]
[1771434583615,76.1,82.717,82.675,32.05655121]
[1771434584015,76.1,82.716,82.63,8.01125712]
[1771434584717,8.01125712,82.72,82.63,8.01125712]
[1771434584915,76.1,82.715,82.63,8.01125712]
[1771434585324,76.1,82.715,82.625,5.08320726]
[1771434585710,10.8888,82.691,82.635,10.8961]
[1771434586017,10.8888,82.691,82.636,22.64734724]
[1771434586411,10.8899,82.683,82.636,22.64734724]
[1771434586816,10.8912,82.673,82.636,22.64734724]
[1771434587517,8.01125712,82.7,82.625,5.08320726]
[1771434587518,10.8923,82.664,82.625,5.08320726]
[1771434588219,10.8923,82.664,82.625,27.73427992]
[1771434588608,10.891,82.675,82.625,27.73427992]
[1771434589518,10.8896,82.685,82.625,27.73427992]
[1771434589822,10.8896,82.685,82.628,22.66278213]
[1771434590015,8.01125712,82.72,82.631,22.66278213]
[1771434590213,76.14,82.719,82.631,22.66278213]
[1771434591017,76.14,82.719,82.643,22.66334251]
[1771434591219,8.01125712,82.72,82.643,22.66334251]
[1771434591818,76.14,82.721,82.663,22.66651342]
[1771434591819,10.8858,82.714,82.663,22.66651342]
[1771434592017,76.14,82.721,82.663,22.66651342]
[1771434592219,76.14,82.722,82.663,22.66651342]
[1771434593324,10.8877,82.699,82.663,22.66651342]
[1771434601121,10.8864,82.709,82.663,22.66651342]
[1771434601323,21.7614,82.753,82.663,22.66651342]
[1771434601527,76.16,82.752,82.663,22.66651342]
[1771434601724,10.8856,82.715,82.664,22.74733874]
[1771434602521,10.8846,82.723,82.674,22.74733874]
[1771434602834,8.01125712,82.74,82.674,22.74733874]
[1771434603422,8.01125712,82.74,82.658,22.7765371]
[1771434603727,21.7653,82.738,82.658,22.7765371]
[1771434604627,8.01125712,82.74,82.66,22.77721312]
[1771434604832,76.16,82.739,82.66,22.77721312]
[1771434605432,8.01125712,82.74,82.66,22.77721312]
[1771434605627,76.16,82.738,82.66,22.77721312]
[1771434605827,10.8857,82.714,82.671,22.77079751]
[1771434606538,8.01125712,82.74,82.652,22.77079751]
[1771434606723,76.16,82.717,82.652,22.77079751]
[1771434606928,76.16,82.716,82.652,22.77079751]
[1771434607334,8.01125712,82.72,82.652,22.77079751]
[1771434607335,76.16,82.715,82.652,22.77079751]
[1771434607535,76.16,82.715,82.637,22.76805983]
[1771434607536,10.8902,82.681,82.637,22.76805983]
[1771434608133,10.891,82.675,82.637,22.76805983]
[1771434609938,10.892,82.667,82.625,5.08320726]
[1771434610434,10.892,82.667,82.625,27.84774902]
[1771434610837,10.8928,82.661,82.625,27.84774902]
[1771434611040,76.16,82.69,82.625,27.84774902]
[1771434611842,76.16,82.689,82.625,27.84774902]
[1771434612142,76.16,82.688,82.625,27.84774902]
[1771434612340,8.02778801,82.68,82.625,5.08320726]
[1771434612539,76.16,82.679,82.625,5.08320726]
[1771434612743,76.16,82.679,82.625,7.26e-06]
[1771434612938,8.02778801,82.68,82.625,7.26e-06]
[1771434613139,76.16,82.678,82.625,7.26e-06]
[1771434613338,8.02778801,82.68,82.625,7.26e-06]
[1771434613339,10.8943,82.649,82.625,7.26e-06]
[1771434613844,8.02778801,82.66,82.57,8.02778801]
[1771434614243,8.02778801,82.66,82.571,84.32612319]
[1771434614244,76.18,82.659,82.571,84.32612319]
[1771434614744,10.8958,82.638,82.585,10.9026]
[1771434614937,76.18,82.659,82.571,84.32612319]
[1771434615142,8.02778801,82.66,82.538,12.1]
[1771434615349,21.7825,82.673,82.57,8.02778801]
[1771434615537,76.18,82.672,82.57,8.02778801]
[1771434615738,10.8964,82.633,82.577,10.9038]
[1771434615938,10.8964,82.633,82.578,12.64551835]
[1771434617040,76.18,82.653,82.588,12.64658876]
[1771434618642,10.8963,82.634,82.588,12.64658876]
[1771434619438,10.8973,82.627,82.588,12.64658876]
[1771434619638,8.02778801,82.64,82.574,12.6634915]
[1771434619850,76.2,82.639,82.575,17.7497767]
[1771434620053,76.2,82.639,82.576,12.6634915]
[1771434620349,21.7825,82.673,82.576,12.6634915]
[1771434620350,76.2,82.654,82.576,12.6634915]
[1771434621445,10.896,82.636,82.585,12.66455469]
[1771434621745,36.21,82.7,82.575,5.0862852]
[1771434621746,8.02778801,82.68,82.591,12.66326133]
[1771434622248,76.2,82.679,82.591,12.66326133]
[1771434622645,10.8947,82.646,82.599,12.66428999]
[1771434624157,10.8956,82.639,82.599,12.66428999]
[1771434626149,2.99940198,82.63,82.584,12.69050694]
[1771434626847,2.99940198,82.64,82.59,15.69095967]
[1771434627453,10.8976,82.624,82.59,12.69155769]
[1771434628151,10.8967,82.631,82.59,15.69095967]
[1771434628747,10.8967,82.631,82.59,12.69155769]
[1771434628956,2.99940198,82.63,82.576,12.69456418]
[1771434629140,2.99940198,82.63,82.575,5.0862852]
[1771434629141,2.99940198,82.63,82.581,12.69456418]
[1771434630445,2.99940198,82.62,82.581,12.69456418]
[1771434630846,36.21,82.694,82.6,15.69506945]
[1771434631049,169.3447,82.709,82.61,15.69506945]
[1771434631050,2.99940198,82.66,82.61,15.69506945]
[1771434631354,10.8948,82.646,82.61,15.69506945]
[1771434631757,2.99940198,82.66,82.61,12.69566747]
[1771434631952,10.8946,82.647,82.61,12.69566747]
[1771434632453,10.8971,82.628,82.594,12.68984143]
[1771434632657,10.8971,82.628,82.586,12.69080728]
[1771434633752,10.8971,82.628,82.58,2.99940198]
[1771434633753,10.8971,82.628,82.588,12.64279586]
[1771434634758,10.8962,82.635,82.59,15.64302203]
[1771434635158,2.99940198,82.65,82.6,15.64302203]
[1771434635456,2.99940198,82.65,82.575,5.0862852]
[1771434635457,2.99940198,82.67,82.62,2.99940198]
[1771434635657,2.99940198,82.67,82.62,15.62097675]
[1771434636362,2.99940198,82.69,82.64,15.62097675]
[1771434636564,2.99940198,82.69,82.64,12.62157477]
[1771434636868,10.8899,82.683,82.64,12.62157477]
[1771434637163,2.99940198,82.69,82.64,12.62157477]
[1771434637859,76.22,82.704,82.64,12.62157477]
[1771434638669,10.8896,82.685,82.64,12.62157477]